[Event "Titled Tuesday Blitz March 07 Early 2023"]
[White "Derix, Bernhard"]
[Black "Madaminov, Mukhiddin"]
[WhiteFideId "4642368"]
[BlackFideId "14210703"]
[WhiteElo "2574"]
[BlackElo "2511"]
[Result "1/2-1/2"]
[Round "02"]
[TimeControl "180+2"]
[Date "2023.03.07"]
[WhiteClock "0:00:12"]
[BlackClock "0:00:18"]

1. e4 {[%clk 0:03:00]}  e5 {[%clk 0:03:00]} 2. Nf3 {[%clk 0:03:00]}  Nc6 {[%clk 0:03:00]} 3. Bb5 {[%clk 0:03:00]}  a6 {[%clk 0:03:01]} 4. Bxc6 {[%clk 0:02:59]}  dxc6 {[%clk 0:03:01]} 5. O-O {[%clk 0:02:59]}  f6 {[%clk 0:03:02]} 6. d4 {[%clk 0:02:59]}  exd4 {[%clk 0:03:03]} 7. Nxd4 {[%clk 0:02:58]}  c5 {[%clk 0:03:04]} 8. Nb3 {[%clk 0:02:58]}  Qxd1 {[%clk 0:03:04]} 9. Rxd1 {[%clk 0:02:59]}  Bd6 {[%clk 0:03:03]} 10. Na5 {[%clk 0:02:59]}  b5 {[%clk 0:02:27]} 11. c4 {[%clk 0:02:57]}  Ne7 {[%clk 0:02:25]} 12. Be3 {[%clk 0:02:56]}  Be6 {[%clk 0:02:22]} 13. Nd2 {[%clk 0:02:46]}  Rb8 {[%clk 0:02:04]} 14. Rac1 {[%clk 0:02:43]}  Kf7 {[%clk 0:01:55]} 15. Ndb3 {[%clk 0:02:37]}  bxc4 {[%clk 0:01:54]} 16. Nxc4 {[%clk 0:02:35]}  Rhd8 {[%clk 0:01:54]} 17. Nba5 {[%clk 0:02:26]}  Rb5 {[%clk 0:01:39]} 18. b3 {[%clk 0:02:23]}  Rd7 {[%clk 0:01:30]} 19. f4 {[%clk 0:02:19]}  Nc8 {[%clk 0:00:58]} 20. f5 {[%clk 0:01:51]}  Bxc4 {[%clk 0:00:56]} 21. Nxc4 {[%clk 0:01:51]}  Ke7 {[%clk 0:00:35]} 22. g3 {[%clk 0:01:47]}  Nb6 {[%clk 0:00:34]} 23. Kg2 {[%clk 0:01:43]}  Rb4 {[%clk 0:00:31]} 24. Kf3 {[%clk 0:01:39]}  Nxc4 {[%clk 0:00:27]} 25. Rxc4 {[%clk 0:01:39]}  Rxc4 {[%clk 0:00:28]} 26. bxc4 {[%clk 0:01:39]}  Rd8 {[%clk 0:00:28]} 27. Rb1 {[%clk 0:01:38]}  Kd7 {[%clk 0:00:27]} 28. h4 {[%clk 0:01:31]}  Kc6 {[%clk 0:00:25]} 29. g4 {[%clk 0:01:31]}  Be5 {[%clk 0:00:25]} 30. Ke2 {[%clk 0:01:26]}  h6 {[%clk 0:00:22]} 31. Rb3 {[%clk 0:00:59]}  Re8 {[%clk 0:00:20]} 32. g5 {[%clk 0:00:52]}  hxg5 {[%clk 0:00:20]} 33. hxg5 {[%clk 0:00:52]}  fxg5 {[%clk 0:00:21]} 34. Bxg5 {[%clk 0:00:52]}  Rh8 {[%clk 0:00:22]} 35. Rf3 {[%clk 0:00:47]}  Rh5 {[%clk 0:00:18]} 36. Be7 {[%clk 0:00:41]}  Bd4 {[%clk 0:00:11]} 37. f6 {[%clk 0:00:31]}  gxf6 {[%clk 0:00:12]} 38. Bxf6 {[%clk 0:00:32]}  Rh2+ {[%clk 0:00:12]} 39. Kd3 {[%clk 0:00:31]}  Rxa2 {[%clk 0:00:03]} 40. e5 {[%clk 0:00:15]}  Ra3+ {[%clk 0:00:03]} 41. Ke4 {[%clk 0:00:16]}  Rxf3 {[%clk 0:00:04]} 42. Kxf3 {[%clk 0:00:17]}  Kd7 {[%clk 0:00:04]} 43. Ke4 {[%clk 0:00:16]}  Ke6 {[%clk 0:00:05]} 44. Bg5 {[%clk 0:00:09]}  Bxe5 {[%clk 0:00:05]} 45. Bd2 {[%clk 0:00:09]}  Bd4 {[%clk 0:00:05]} 46. Ba5 {[%clk 0:00:09]}  Kd6 {[%clk 0:00:05]} 47. Kd3 {[%clk 0:00:09]}  Kc6 {[%clk 0:00:06]} 48. Ke4 {[%clk 0:00:09]}  Bb2 {[%clk 0:00:06]} 49. Kd3 {[%clk 0:00:06]}  Ba3 {[%clk 0:00:07]} 50. Bc3 {[%clk 0:00:06]}  Bb4 {[%clk 0:00:07]} 51. Be5 {[%clk 0:00:07]}  a5 {[%clk 0:00:08]} 52. Kc2 {[%clk 0:00:05]}  a4 {[%clk 0:00:09]} 53. Kb2 {[%clk 0:00:05]}  Ba5 {[%clk 0:00:09]} 54. Ka3 {[%clk 0:00:04]}  Bb6 {[%clk 0:00:06]} 55. Kxa4 {[%clk 0:00:05]}  Kb7 {[%clk 0:00:06]} 56. Kb5 {[%clk 0:00:05]}  c6+ {[%clk 0:00:05]} 57. Ka4 {[%clk 0:00:06]}  Kc8 {[%clk 0:00:04]} 58. Bf4 {[%clk 0:00:06]}  Kd7 {[%clk 0:00:05]} 59. Be3 {[%clk 0:00:07]}  Ke6 {[%clk 0:00:06]} 60. Kb3 {[%clk 0:00:08]}  Ke5 {[%clk 0:00:06]} 61. Bf2 {[%clk 0:00:08]}  Ke4 {[%clk 0:00:07]} 62. Bg1 {[%clk 0:00:09]}  Kd3 {[%clk 0:00:08]} 63. Bf2 {[%clk 0:00:09]}  Ba7 {[%clk 0:00:08]} 64. Bg1 {[%clk 0:00:09]}  Ke2 {[%clk 0:00:09]} 65. Bh2 {[%clk 0:00:09]}  Bb6 {[%clk 0:00:09]} 66. Bd6 {[%clk 0:00:09]}  Kd3 {[%clk 0:00:09]} 67. Bb8 {[%clk 0:00:09]}  Bd8 {[%clk 0:00:06]} 68. Bd6 {[%clk 0:00:08]}  Kd4 {[%clk 0:00:06]} 69. Bf8 {[%clk 0:00:08]}  Bf6 {[%clk 0:00:07]} 70. Bd6 {[%clk 0:00:08]}  Be5 {[%clk 0:00:07]} 71. Bf8 {[%clk 0:00:08]}  Bc7 {[%clk 0:00:08]} 72. Be7 {[%clk 0:00:08]}  Bb6 {[%clk 0:00:08]} 73. Bf6+ {[%clk 0:00:08]}  Ke4 {[%clk 0:00:08]} 74. Be7 {[%clk 0:00:08]}  Ke5 {[%clk 0:00:09]} 75. Bf8 {[%clk 0:00:08]}  Ke6 {[%clk 0:00:10]} 76. Bh6 {[%clk 0:00:08]}  Bc7 {[%clk 0:00:10]} 77. Be3 {[%clk 0:00:08]}  Bd6 {[%clk 0:00:11]} 78. Bf2 {[%clk 0:00:09]}  Kf5 {[%clk 0:00:12]} 79. Bg1 {[%clk 0:00:09]}  Ke4 {[%clk 0:00:13]} 80. Bf2 {[%clk 0:00:09]}  Kf3 {[%clk 0:00:13]} 81. Be1 {[%clk 0:00:08]}  Be5 {[%clk 0:00:11]} 82. Ba5 {[%clk 0:00:09]}  Ke4 {[%clk 0:00:12]} 83. Bb6 {[%clk 0:00:09]}  Bd6 {[%clk 0:00:13]} 84. Bd8 {[%clk 0:00:09]}  Kf5 {[%clk 0:00:12]} 85. Bb6 {[%clk 0:00:09]}  Ke6 {[%clk 0:00:13]} 86. Ba5 {[%clk 0:00:10]}  Kd7 {[%clk 0:00:13]} 87. Bc3 {[%clk 0:00:10]}  Bc7 {[%clk 0:00:14]} 88. Bd2 {[%clk 0:00:11]}  Ke6 {[%clk 0:00:14]} 89. Be1 {[%clk 0:00:09]}  Kf5 {[%clk 0:00:14]} 90. Bd2 {[%clk 0:00:10]}  Ke4 {[%clk 0:00:15]} 91. Bc3 {[%clk 0:00:10]}  Bf4 {[%clk 0:00:15]} 92. Ba5 {[%clk 0:00:10]}  Be3 {[%clk 0:00:16]} 93. Bd8 {[%clk 0:00:10]}  Bd4 {[%clk 0:00:17]} 94. Be7 {[%clk 0:00:10]}  Ke5 {[%clk 0:00:17]} 95. Bf8 {[%clk 0:00:10]}  Ke6 {[%clk 0:00:17]} 96. Bh6 {[%clk 0:00:10]}  Kf5 {[%clk 0:00:17]} 97. Bd2 {[%clk 0:00:11]}  Ke4 {[%clk 0:00:16]} 98. Be1 {[%clk 0:00:11]}  Be3 {[%clk 0:00:15]} 99. Ba5 {[%clk 0:00:11]}  Bf4 {[%clk 0:00:16]} 100. Bb6 {[%clk 0:00:12]}  Bd6 {[%clk 0:00:16]} 101. Ba5 {[%clk 0:00:11]}  Bb8 {[%clk 0:00:16]} 102. Be1 {[%clk 0:00:11]}  Bf4 {[%clk 0:00:16]} 103. Bf2 {[%clk 0:00:11]}  Be3 {[%clk 0:00:16]} 104. Bg3 {[%clk 0:00:12]}  Kf5 {[%clk 0:00:17]} 105. Be1 {[%clk 0:00:12]}  Bd4 {[%clk 0:00:17]} 106. Ba5 {[%clk 0:00:12]}  Ke4 {[%clk 0:00:18]} 1/2-1/2


[Site "https://www.chess.com"]

[Event "Titled Tuesday Blitz March 07 Early 2023"]
[White "Aizpurua, Patrick Emilio"]
[Black "Zhigalko, Sergei"]
[WhiteFideId "6600522"]
[BlackFideId "13502956"]
[WhiteElo "2378"]
[BlackElo "2626"]
[Result "0-1"]
[Round "02"]
[TimeControl "180+2"]
[Date "2023.03.07"]
[WhiteClock "0:00:12"]
[BlackClock "0:00:18"]

1. d4 {[%clk 0:03:00]}  Nf6 {[%clk 0:03:00]} 2. c4 {[%clk 0:03:00]}  e6 {[%clk 0:03:00]} 3. Nf3 {[%clk 0:03:00]}  b6 {[%clk 0:03:01]} 4. g3 {[%clk 0:03:00]}  Ba6 {[%clk 0:03:01]} 5. b3 {[%clk 0:03:00]}  Bb4+ {[%clk 0:03:01]} 6. Bd2 {[%clk 0:02:59]}  Be7 {[%clk 0:03:02]} 7. Bg2 {[%clk 0:02:59]}  c6 {[%clk 0:03:02]} 8. O-O {[%clk 0:02:57]}  d5 {[%clk 0:03:03]} 9. cxd5 {[%clk 0:02:57]}  cxd5 {[%clk 0:03:04]} 10. Nc3 {[%clk 0:02:57]}  Nc6 {[%clk 0:03:01]} 11. a3 {[%clk 0:02:51]}  Na5 {[%clk 0:02:58]} 12. Re1 {[%clk 0:02:48]}  O-O {[%clk 0:02:52]} 13. Ne5 {[%clk 0:02:47]}  Rc8 {[%clk 0:02:50]} 14. e3 {[%clk 0:02:31]}  Bd6 {[%clk 0:02:42]} 15. f4 {[%clk 0:02:15]}  Qe7 {[%clk 0:02:39]} 16. a4 {[%clk 0:02:08]}  Bb4 {[%clk 0:02:35]} 17. Rc1 {[%clk 0:01:59]}  Ba3 {[%clk 0:02:35]} 18. Rb1 {[%clk 0:01:56]}  Bb4 {[%clk 0:02:35]} 19. Rc1 {[%clk 0:01:56]}  Rc7 {[%clk 0:02:33]} 20. Bf1 {[%clk 0:01:42]}  Bxf1 {[%clk 0:02:29]} 21. Rxf1 {[%clk 0:01:43]}  Rfc8 {[%clk 0:02:26]} 22. Nb1 {[%clk 0:01:03]}  Rxc1 {[%clk 0:02:16]} 23. Bxc1 {[%clk 0:01:01]}  Ne4 {[%clk 0:02:16]} 24. f5 {[%clk 0:00:54]}  f6 {[%clk 0:01:16]} 25. Nd3 {[%clk 0:00:53]}  Bd6 {[%clk 0:01:12]} 26. fxe6 {[%clk 0:00:50]}  Qxe6 {[%clk 0:01:13]} 27. Ba3 {[%clk 0:00:37]}  Bxa3 {[%clk 0:00:41]} 28. Nxa3 {[%clk 0:00:38]}  Nc3 {[%clk 0:00:41]} 29. Qf3 {[%clk 0:00:36]}  Nxb3 {[%clk 0:00:38]} 30. Nf4 {[%clk 0:00:35]}  Qd7 {[%clk 0:00:34]} 31. Re1 {[%clk 0:00:23]}  Nd2 {[%clk 0:00:22]} 32. Qh5 {[%clk 0:00:23]}  g6 {[%clk 0:00:19]} 33. Qh6 {[%clk 0:00:18]}  Nf3+ {[%clk 0:00:18]} 34. Kf2 {[%clk 0:00:17]}  Nxe1 {[%clk 0:00:18]} 35. Kxe1 {[%clk 0:00:17]}  Ne4 {[%clk 0:00:18]} 36. Nb5 {[%clk 0:00:12]}  a6 {[%clk 0:00:18]} 0-1


[Site "https://www.chess.com"]

[Event "Titled Tuesday Blitz March 07 Early 2023"]
[White "Papp, Levente"]
[Black "Narayanan, Srinath"]
[WhiteFideId "751243"]
[BlackFideId "5018420"]
[WhiteElo "2380"]
[BlackElo "2438"]
[Result "0-1"]
[Round "02"]
[TimeControl "180+2"]
[Date "2023.03.07"]
[WhiteClock "0:00:01"]
[BlackClock "0:00:03"]

1. b3 {[%clk 0:03:00]}  e5 {[%clk 0:02:51]} 2. Bb2 {[%clk 0:03:00]}  Nc6 {[%clk 0:02:51]} 3. c4 {[%clk 0:03:00]}  Nf6 {[%clk 0:02:50]} 4. Nc3 {[%clk 0:03:00]}  d5 {[%clk 0:02:49]} 5. cxd5 {[%clk 0:03:01]}  Nxd5 {[%clk 0:02:50]} 6. g3 {[%clk 0:03:02]}  Be6 {[%clk 0:02:49]} 7. Bg2 {[%clk 0:03:02]}  Be7 {[%clk 0:02:50]} 8. Nf3 {[%clk 0:03:02]}  O-O {[%clk 0:02:50]} 9. O-O {[%clk 0:03:02]}  Nb6 {[%clk 0:02:42]} 10. Rc1 {[%clk 0:02:59]}  f6 {[%clk 0:02:39]} 11. Ne4 {[%clk 0:02:50]}  Rf7 {[%clk 0:02:35]} 12. d4 {[%clk 0:02:46]}  exd4 {[%clk 0:02:30]} 13. Nxd4 {[%clk 0:02:47]}  Nxd4 {[%clk 0:02:30]} 14. Qxd4 {[%clk 0:02:43]}  Qxd4 {[%clk 0:02:27]} 15. Bxd4 {[%clk 0:02:44]}  Ba3 {[%clk 0:02:28]} 16. Rcd1 {[%clk 0:02:22]}  c6 {[%clk 0:02:23]} 17. Bc5 {[%clk 0:02:15]}  Bxc5 {[%clk 0:01:59]} 18. Nxc5 {[%clk 0:02:16]}  Re7 {[%clk 0:01:58]} 19. Rd4 {[%clk 0:01:43]}  Bf7 {[%clk 0:01:54]} 20. e3 {[%clk 0:01:39]}  Rae8 {[%clk 0:01:43]} 21. Rfd1 {[%clk 0:01:38]}  Nd5 {[%clk 0:01:43]} 22. Bxd5 {[%clk 0:01:23]}  Bxd5 {[%clk 0:01:44]} 23. e4 {[%clk 0:01:09]}  Bxe4 {[%clk 0:01:37]} 24. Nxe4 {[%clk 0:00:57]}  Rxe4 {[%clk 0:01:38]} 25. Rxe4 {[%clk 0:00:54]}  Rxe4 {[%clk 0:01:39]} 26. Rd7 {[%clk 0:00:54]}  Rb4 {[%clk 0:01:24]} 27. Kf1 {[%clk 0:00:46]}  h5 {[%clk 0:01:23]} 28. h4 {[%clk 0:00:40]}  a5 {[%clk 0:01:21]} 29. Ke2 {[%clk 0:00:16]}  b5 {[%clk 0:00:54]} 30. Ra7 {[%clk 0:00:10]}  a4 {[%clk 0:00:53]} 31. bxa4 {[%clk 0:00:11]}  Rb2+ {[%clk 0:00:17]} 32. Kd3 {[%clk 0:00:11]}  Rxa2 {[%clk 0:00:16]} 33. a5 {[%clk 0:00:11]}  Rxf2 {[%clk 0:00:15]} 34. Kd4 {[%clk 0:00:08]}  Rf3 {[%clk 0:00:14]} 35. Kc5 {[%clk 0:00:08]}  Rxg3 {[%clk 0:00:13]} 36. Re7 {[%clk 0:00:05]}  Rc3+ {[%clk 0:00:11]} 37. Kb6 {[%clk 0:00:06]}  b4 {[%clk 0:00:11]} 38. a6 {[%clk 0:00:05]}  Ra3 {[%clk 0:00:11]} 39. Re8+ {[%clk 0:00:04]}  Kf7 {[%clk 0:00:11]} 40. Rb8 {[%clk 0:00:05]}  g5 {[%clk 0:00:09]} 41. hxg5 {[%clk 0:00:03]}  fxg5 {[%clk 0:00:10]} 42. a7 {[%clk 0:00:01]}  h4 {[%clk 0:00:09]} 43. Kb7 {[%clk 0:00:01]}  h3 {[%clk 0:00:07]} 44. a8=Q {[%clk 0:00:02]}  Rxa8 {[%clk 0:00:07]} 45. Kxa8 {[%clk 0:00:02]}  g4 {[%clk 0:00:03]} 46. Rxb4 {[%clk 0:00:02]}  g3 {[%clk 0:00:03]} 47. Rf4+ {[%clk 0:00:02]}  Ke6 {[%clk 0:00:03]} 48. Rf3 {[%clk 0:00:01]}  h2 {[%clk 0:00:04]} 49. Rxg3 {[%clk 0:00:02]}  h1=Q {[%clk 0:00:04]} 50. Kb7 {[%clk 0:00:02]}  Qd5 {[%clk 0:00:03]} 51. Rg6+ {[%clk 0:00:01]}  Kf7 {[%clk 0:00:04]} 52. Rxc6 {[%clk 0:00:02]}  Ke7 {[%clk 0:00:04]} 53. Kb6 {[%clk 0:00:02]}  Qb3+ {[%clk 0:00:05]} 54. Kc7 {[%clk 0:00:02]}  Qb4 {[%clk 0:00:05]} 55. Rb6 {[%clk 0:00:02]}  Qc5+ {[%clk 0:00:05]} 56. Kb7 {[%clk 0:00:03]}  Kd7 {[%clk 0:00:05]} 57. Ra6 {[%clk 0:00:03]}  Qb5+ {[%clk 0:00:04]} 58. Rb6 {[%clk 0:00:04]}  Qd5+ {[%clk 0:00:04]} 59. Ka7 {[%clk 0:00:02]}  Kc7 {[%clk 0:00:03]} 60. Rc6+ {[%clk 0:00:01]}  Kxc6 {[%clk 0:00:03]} 0-1


[Site "https://www.chess.com"]

[Event "Titled Tuesday Blitz March 07 Early 2023"]
[White "Belov, Alexei"]
[Black "Bharath Subramaniyam H"]
[WhiteFideId "4128206"]
[BlackFideId "46634827"]
[WhiteElo "2561"]
[BlackElo "2395"]
[Result "1-0"]
[Round "02"]
[TimeControl "180+2"]
[Date "2023.03.07"]
[WhiteClock "0:00:17"]
[BlackClock "0:00:09"]

1. e4 {[%clk 0:03:00]}  c5 {[%clk 0:02:56]} 2. Nf3 {[%clk 0:03:00]}  Nf6 {[%clk 0:02:54]} 3. e5 {[%clk 0:02:58]}  Nd5 {[%clk 0:02:54]} 4. d4 {[%clk 0:02:58]}  cxd4 {[%clk 0:02:53]} 5. Nxd4 {[%clk 0:02:59]}  e6 {[%clk 0:02:52]} 6. c4 {[%clk 0:02:52]}  Nc7 {[%clk 0:02:44]} 7. Nc3 {[%clk 0:02:51]}  Nc6 {[%clk 0:02:41]} 8. Nxc6 {[%clk 0:02:48]}  bxc6 {[%clk 0:02:42]} 9. Bd3 {[%clk 0:02:41]}  Be7 {[%clk 0:02:29]} 10. Qg4 {[%clk 0:02:35]}  g6 {[%clk 0:02:25]} 11. Bh6 {[%clk 0:02:34]}  d5 {[%clk 0:02:21]} 12. exd6 {[%clk 0:02:31]}  Qxd6 {[%clk 0:02:22]} 13. O-O-O {[%clk 0:02:23]}  e5 {[%clk 0:02:22]} 14. Qe2 {[%clk 0:02:17]}  Ne6 {[%clk 0:02:12]} 15. Rhe1 {[%clk 0:01:51]}  Rb8 {[%clk 0:01:25]} 16. Qxe5 {[%clk 0:01:41]}  Qxe5 {[%clk 0:01:26]} 17. Rxe5 {[%clk 0:01:41]}  Bf6 {[%clk 0:01:25]} 18. Re2 {[%clk 0:01:38]}  Bxc3 {[%clk 0:01:20]} 19. bxc3 {[%clk 0:01:37]}  f6 {[%clk 0:01:18]} 20. f4 {[%clk 0:01:16]}  Kf7 {[%clk 0:01:15]} 21. Be4 {[%clk 0:01:07]}  Rb6 {[%clk 0:01:01]} 22. Rd6 {[%clk 0:01:03]}  c5 {[%clk 0:00:53]} 23. Rxb6 {[%clk 0:00:55]}  axb6 {[%clk 0:00:54]} 24. f5 {[%clk 0:00:53]}  gxf5 {[%clk 0:00:51]} 25. Bd5 {[%clk 0:00:51]}  Re8 {[%clk 0:00:30]} 26. Rb2 {[%clk 0:00:48]}  Kg6 {[%clk 0:00:30]} 27. Bd2 {[%clk 0:00:46]}  Nc7 {[%clk 0:00:22]} 28. Rxb6 {[%clk 0:00:40]}  Nxd5 {[%clk 0:00:20]} 29. cxd5 {[%clk 0:00:40]}  Re2 {[%clk 0:00:21]} 30. d6 {[%clk 0:00:34]}  Be6 {[%clk 0:00:17]} 31. Rb7 {[%clk 0:00:33]}  Re5 {[%clk 0:00:16]} 32. Bf4 {[%clk 0:00:30]}  Rd5 {[%clk 0:00:17]} 33. a4 {[%clk 0:00:29]}  c4 {[%clk 0:00:17]} 34. Rb5 {[%clk 0:00:27]}  Rd3 {[%clk 0:00:16]} 35. Kc2 {[%clk 0:00:27]}  Bd7 {[%clk 0:00:17]} 36. Rb4 {[%clk 0:00:26]}  Rd5 {[%clk 0:00:16]} 37. Rxc4 {[%clk 0:00:25]}  Kf7 {[%clk 0:00:16]} 38. Rc7 {[%clk 0:00:24]}  Ke6 {[%clk 0:00:17]} 39. c4 {[%clk 0:00:24]}  Ra5 {[%clk 0:00:17]} 40. c5 {[%clk 0:00:24]}  Bxa4+ {[%clk 0:00:17]} 41. Kc3 {[%clk 0:00:23]}  Ra6 {[%clk 0:00:15]} 42. Re7+ {[%clk 0:00:20]}  Kd5 {[%clk 0:00:16]} 43. d7 {[%clk 0:00:21]}  Ra8 {[%clk 0:00:16]} 44. Bc7 {[%clk 0:00:20]}  Bxd7 {[%clk 0:00:15]} 45. Rxd7+ {[%clk 0:00:20]}  Kxc5 {[%clk 0:00:16]} 46. Rxh7 {[%clk 0:00:20]}  Ra3+ {[%clk 0:00:15]} 47. Kb2 {[%clk 0:00:19]}  Re3 {[%clk 0:00:15]} 48. g3 {[%clk 0:00:19]}  Kd5 {[%clk 0:00:14]} 49. Bf4 {[%clk 0:00:19]}  Rf3 {[%clk 0:00:14]} 50. Rd7+ {[%clk 0:00:19]}  Ke6 {[%clk 0:00:14]} 51. Rd6+ {[%clk 0:00:18]}  Kf7 {[%clk 0:00:15]} 52. h4 {[%clk 0:00:19]}  Kg6 {[%clk 0:00:14]} 53. Be5 {[%clk 0:00:17]}  Kh5 {[%clk 0:00:07]} 54. Rxf6 {[%clk 0:00:17]}  Kg4 {[%clk 0:00:08]} 55. Bf4 {[%clk 0:00:17]}  Rf2+ {[%clk 0:00:07]} 56. Kc3 {[%clk 0:00:17]}  Rh2 {[%clk 0:00:08]} 57. Kd4 {[%clk 0:00:17]}  Re2 {[%clk 0:00:08]} 58. Rg6+ {[%clk 0:00:17]}  Kf3 {[%clk 0:00:08]} 59. Rg5 {[%clk 0:00:17]}  Re4+ {[%clk 0:00:09]} 60. Kd5 {[%clk 0:00:17]} 1-0


[Site "https://www.chess.com"]

[Event "Titled Tuesday Blitz March 07 Early 2023"]
[White "Ilinca Ilinca, Felix Antonio"]
[Black "Movahed, Sina"]
[WhiteFideId "54764998"]
[BlackFideId "42520835"]
[WhiteElo "2031"]
[BlackElo "2225"]
[Result "1-0"]
[Round "02"]
[TimeControl "180+2"]
[Date "2023.03.07"]
[WhiteClock "0:00:15"]
[BlackClock "0:00:13"]

1. c4 {[%clk 0:02:59]}  Nf6 {[%clk 0:02:59]} 2. Nc3 {[%clk 0:02:59]}  g6 {[%clk 0:02:59]} 3. e4 {[%clk 0:02:59]}  d6 {[%clk 0:02:59]} 4. d4 {[%clk 0:02:59]}  Bg7 {[%clk 0:03:00]} 5. Be2 {[%clk 0:03:00]}  O-O {[%clk 0:03:00]} 6. Be3 {[%clk 0:03:00]}  Nc6 {[%clk 0:02:56]} 7. d5 {[%clk 0:02:52]}  Ne5 {[%clk 0:02:56]} 8. f4 {[%clk 0:02:52]}  Neg4 {[%clk 0:02:56]} 9. Bd2 {[%clk 0:02:52]}  b5 {[%clk 0:02:39]} 10. cxb5 {[%clk 0:02:37]}  e6 {[%clk 0:02:38]} 11. Bxg4 {[%clk 0:02:34]}  Nxg4 {[%clk 0:02:38]} 12. Qxg4 {[%clk 0:02:34]}  exd5 {[%clk 0:02:39]} 13. Qg5 {[%clk 0:02:29]}  Qe8 {[%clk 0:02:19]} 14. Qxd5 {[%clk 0:02:26]}  Rb8 {[%clk 0:02:16]} 15. Nf3 {[%clk 0:02:21]}  Bb7 {[%clk 0:02:16]} 16. Qc4 {[%clk 0:02:16]}  c6 {[%clk 0:01:54]} 17. O-O {[%clk 0:02:10]}  cxb5 {[%clk 0:01:52]} 18. Qd3 {[%clk 0:02:04]}  Qd7 {[%clk 0:01:43]} 19. Rad1 {[%clk 0:01:59]}  Rfe8 {[%clk 0:01:42]} 20. Nd5 {[%clk 0:01:56]}  Rbc8 {[%clk 0:01:37]} 21. Bc3 {[%clk 0:01:49]}  Rxc3 {[%clk 0:01:37]} 22. Nxc3 {[%clk 0:01:44]}  b4 {[%clk 0:01:36]} 23. Nd5 {[%clk 0:01:42]}  a5 {[%clk 0:01:36]} 24. Kh1 {[%clk 0:01:38]}  Bxb2 {[%clk 0:01:36]} 25. Rb1 {[%clk 0:01:31]}  Bg7 {[%clk 0:01:28]} 26. Rfe1 {[%clk 0:01:30]}  Bc6 {[%clk 0:01:16]} 27. Qa6 {[%clk 0:01:25]}  Ra8 {[%clk 0:01:11]} 28. Qb6 {[%clk 0:01:23]}  Bxd5 {[%clk 0:01:04]} 29. exd5 {[%clk 0:01:23]}  Bc3 {[%clk 0:01:04]} 30. Red1 {[%clk 0:01:16]}  Kg7 {[%clk 0:00:57]} 31. Qc6 {[%clk 0:01:15]}  Qd8 {[%clk 0:00:56]} 32. a3 {[%clk 0:01:10]}  Rc8 {[%clk 0:00:55]} 33. Qa4 {[%clk 0:01:11]}  Rc4 {[%clk 0:00:54]} 34. axb4 {[%clk 0:01:10]}  axb4 {[%clk 0:00:54]} 35. Rdc1 {[%clk 0:01:02]}  Qf6 {[%clk 0:00:52]} 36. Qd7 {[%clk 0:00:54]}  Rxf4 {[%clk 0:00:50]} 37. Rf1 {[%clk 0:00:54]}  h5 {[%clk 0:00:47]} 38. h3 {[%clk 0:00:44]}  Be5 {[%clk 0:00:32]} 39. Nd2 {[%clk 0:00:40]}  Rf2 {[%clk 0:00:29]} 40. Rxf2 {[%clk 0:00:37]}  Qxf2 {[%clk 0:00:26]} 41. Nf3 {[%clk 0:00:14]}  Bf4 {[%clk 0:00:17]} 42. Qb5 {[%clk 0:00:13]}  Qg3 {[%clk 0:00:16]} 43. Qxb4 {[%clk 0:00:13]}  Be3 {[%clk 0:00:16]} 44. Qc3+ {[%clk 0:00:13]}  Kg8 {[%clk 0:00:15]} 45. Qxe3 {[%clk 0:00:14]}  h4 {[%clk 0:00:15]} 46. Rb8+ {[%clk 0:00:14]}  Kg7 {[%clk 0:00:15]} 47. Qd4+ {[%clk 0:00:15]}  f6 {[%clk 0:00:15]} 48. Qxh4 {[%clk 0:00:15]}  Qxh4 {[%clk 0:00:13]} 49. Nxh4 {[%clk 0:00:15]} 1-0


[Site "https://www.chess.com"]

[Event "Titled Tuesday Blitz March 07 Early 2023"]
[White "Harsh Suresh"]
[Black "Borrmann, Laurenz"]
[WhiteFideId "45018464"]
[BlackFideId "312187930"]
[WhiteElo "2227"]
[BlackElo "2312"]
[Result "0-1"]
[Round "02"]
[TimeControl "180+2"]
[Date "2023.03.07"]
[WhiteClock "0:00:05"]
[BlackClock "0:00:10"]

1. c4 {[%clk 0:03:00]}  e5 {[%clk 0:02:49]} 2. Nc3 {[%clk 0:03:00]}  Bb4 {[%clk 0:02:36]} 3. Nd5 {[%clk 0:02:55]}  a5 {[%clk 0:02:36]} 4. a3 {[%clk 0:02:48]}  Bc5 {[%clk 0:02:32]} 5. e3 {[%clk 0:02:38]}  c6 {[%clk 0:02:09]} 6. Nc3 {[%clk 0:02:37]}  Nf6 {[%clk 0:02:06]} 7. d4 {[%clk 0:02:33]}  exd4 {[%clk 0:02:06]} 8. exd4 {[%clk 0:02:34]}  Bb6 {[%clk 0:02:04]} 9. Nf3 {[%clk 0:02:33]}  O-O {[%clk 0:02:05]} 10. Be2 {[%clk 0:02:28]}  d5 {[%clk 0:02:04]} 11. O-O {[%clk 0:02:23]}  Be6 {[%clk 0:01:54]} 12. c5 {[%clk 0:02:15]}  Bc7 {[%clk 0:01:53]} 13. Bg5 {[%clk 0:02:15]}  Nbd7 {[%clk 0:01:51]} 14. b4 {[%clk 0:02:13]}  Qb8 {[%clk 0:01:46]} 15. Bd3 {[%clk 0:02:00]}  Bg4 {[%clk 0:01:37]} 16. h3 {[%clk 0:01:59]}  Bh5 {[%clk 0:01:37]} 17. b5 {[%clk 0:01:53]}  Re8 {[%clk 0:01:21]} 18. Rb1 {[%clk 0:01:48]}  Qc8 {[%clk 0:00:50]} 19. bxc6 {[%clk 0:01:10]}  bxc6 {[%clk 0:00:47]} 20. Re1 {[%clk 0:00:49]}  h6 {[%clk 0:00:46]} 21. Bd2 {[%clk 0:00:36]}  Rxe1+ {[%clk 0:00:40]} 22. Qxe1 {[%clk 0:00:36]}  Bxf3 {[%clk 0:00:38]} 23. gxf3 {[%clk 0:00:37]}  Nf8 {[%clk 0:00:37]} 24. Bf1 {[%clk 0:00:31]}  Ne6 {[%clk 0:00:34]} 25. Ne2 {[%clk 0:00:29]}  Ng5 {[%clk 0:00:29]} 26. Bxg5 {[%clk 0:00:29]}  hxg5 {[%clk 0:00:30]} 27. Qd2 {[%clk 0:00:28]}  Qf5 {[%clk 0:00:28]} 28. Rb3 {[%clk 0:00:26]}  Nh5 {[%clk 0:00:24]} 29. Bg2 {[%clk 0:00:16]}  Re8 {[%clk 0:00:21]} 30. Rb7 {[%clk 0:00:05]}  Bf4 {[%clk 0:00:21]} 31. Qd1 {[%clk 0:00:03]}  Qe6 {[%clk 0:00:17]} 32. Bf1 {[%clk 0:00:02]}  Bb8 {[%clk 0:00:15]} 33. Qb1 {[%clk 0:00:02]}  Qc8 {[%clk 0:00:13]} 34. Qb6 {[%clk 0:00:02]}  Nf4 {[%clk 0:00:12]} 35. Ng3 {[%clk 0:00:01]}  g6 {[%clk 0:00:09]} 36. Kh2 {[%clk 0:00:01]}  Kg7 {[%clk 0:00:09]} 37. Qb4 {[%clk 0:00:01]}  Rh8 {[%clk 0:00:09]} 38. Qb3 {[%clk 0:00:01]}  Nxh3 {[%clk 0:00:09]} 39. Bxh3 {[%clk 0:00:02]}  Qxh3+ {[%clk 0:00:09]} 40. Kg1 {[%clk 0:00:02]}  Bxg3 {[%clk 0:00:09]} 41. fxg3 {[%clk 0:00:03]}  Qxg3+ {[%clk 0:00:09]} 42. Kf1 {[%clk 0:00:04]}  Rh1+ {[%clk 0:00:09]} 43. Ke2 {[%clk 0:00:04]}  Re1+ {[%clk 0:00:09]} 44. Kd2 {[%clk 0:00:05]}  Qf2+ {[%clk 0:00:09]} 45. Kc3 {[%clk 0:00:05]}  Re3# {[%clk 0:00:10]} 0-1


[Site "https://www.chess.com"]